bitfinex/quotes_ETHUSD_20241004
["timestamp","ask_amount","ask_price","bid_price","bid_amount"]
[1728060708448,0.429,2435.7,2435.5,4.8985]
[1728060708810,0.429,2435.7,2435.5,0.7926]
[1728060709155,0.429,2435.7,2435.5,4.89852]
[1728060709673,0.429,2435.7,2435.6,4.10576]
[1728060710012,4.10489,2436.2,2435.7,4.10553]
[1728060710013,4.10482,2436.2,2435.7,4.10553]
[1728060710213,4.10509,2436.0,2435.6,4.10576]
[1728060710619,3.0,2436.3,2435.9,4.10515]
[1728060710819,4.92092,2436.4,2435.9,0.410515]
[1728060711014,4.10452,2436.4,2435.9,0.410515]
[1728060711269,4.10484,2436.2,2435.7,4.10557]
[1728060711560,4.10413,2436.6,2435.7,4.10557]
[1728060711561,4.10449,2436.4,2435.9,4.10512]
[1728060712656,4.10449,2436.4,2436.0,4.10506]
[1728060713046,4.10434,2436.5,2436.0,0.7721]
[1728060713306,4.10444,2436.4,2436.0,0.7721]
[1728060714252,4.10444,2436.4,2436.0,4.87713]
[1728060715102,4.10444,2436.4,2436.0,0.7721]
[1728060715399,4.10458,2436.3,2436.0,0.7721]
[1728060715789,4.10478,2436.2,2435.8,4.86651]
[1728060716101,4.10458,2436.3,2435.9,4.1052]
[1728060716300,4.10458,2436.3,2435.9,4.17108005]
[1728060716593,4.10458,2436.3,2435.9,0.06588005]
[1728060716905,4.10443,2436.4,2436.0,4.10508]
[1728060717210,4.10443,2436.4,2436.1,0.06548494]
[1728060717398,4.10443,2436.4,2435.9,4.10517]
[1728060717712,4.10436,2436.5,2436.2,0.06528742]
[1728060717881,4.10436,2436.5,2436.0,4.10507]
[1728060717882,8.20877,2436.5,2436.0,4.10507]
[1728060718067,8.20877,2436.5,2436.3,0.0650899]
[1728060718270,4.10436,2436.5,2436.0,4.10507]
[1728060718469,4.10442,2436.4,2436.0,4.10507]
[1728060719309,4.10408,2436.6,2436.0,4.10507]
[1728060719472,4.10425,2436.5,2436.1,4.1049]
[1728060720649,4.10444,2436.4,2435.9,4.10516]
[1728060720813,4.1046,2436.3,2435.9,4.10516]
[1728060721109,4.10474,2436.3,2435.8,0.7611]
[1728060721294,4.10443,2436.4,2436.0,4.10504]
[1728060721822,4.10443,2436.4,2435.9,4.10522]
[1728060721823,4.10443,2436.4,2435.9,8.21037]
[1728060722022,4.10408,2436.6,2436.1,4.10479]
[1728060722172,0.7603,2436.7,2436.3,4.10457]
[1728060722173,4.86428,2436.7,2436.3,4.10457]
[1728060722377,4.86428,2436.7,2436.3,8.20907]
[1728060722378,4.10398,2436.7,2436.3,8.20907]
[1728060722683,4.10398,2436.7,2436.3,4.1045]
[1728060723210,4.10403,2436.7,2436.2,4.92512]
[1728060723410,4.10399,2436.7,2436.2,4.92512]
[1728060723613,4.10399,2436.7,2436.2,5.68847697]
[1728060724111,4.10399,2436.7,2436.3,4.10457]
[1728060724434,4.10399,2436.7,2436.2,1.58375697]
[1728060724588,0.64352692,2436.9,2436.2,0.8204]
[1728060724790,4.10466,2436.3,2435.8,7.3]
[1728060724997,4.10516,2436.0,2435.8,7.3]
[1728060725199,4.10516,2436.0,2435.4,4.2267204]
[1728060725400,4.10542,2435.8,2435.5,0.8163]
[1728060725833,4.10528,2435.9,2435.5,4.9222]
[1728060726204,4.10485,2436.2,2435.5,4.9222]
[1728060726402,4.10464,2436.3,2435.5,1.32059604]
[1728060726619,4.10458,2436.3,2435.9,4.10524]
[1728060726824,0.7938,2436.4,2435.5,0.8163]
[1728060726825,4.10487,2436.2,2435.5,0.8163]
[1728060727021,4.10545,2435.8,2435.4,4.2267704]
[1728060727418,4.515527,2436.1,2435.6,4.10568]
[1728060727638,4.515527,2436.1,2435.4,0.1207604]
[1728060727947,4.10519,2436.0,2435.5,4.10578]
[1728060728239,4.10519,2436.0,2435.6,4.10576]
[1728060728598,8.21038,2436.0,2435.6,4.10576]
[1728060728800,4.10519,2436.0,2435.6,4.10576]
[1728060729307,4.88424,2436.2,2435.7,0.8142]
[1728060729838,4.10501,2436.1,2435.7,0.8142]
[1728060730340,4.10427,2436.5,2435.7,0.8142]
[1728060730341,4.10448,2436.4,2435.9,4.10512]
[1728060730514,4.10465,2436.3,2435.9,4.10524]
[1728060730835,3.0,2436.4,2436.0,4.10506]
[1728060731344,7.10444,2436.4,2436.1,0.06528038]
[1728060731696,4.1041,2436.6,2436.2,0.8182]
[1728060731950,4.1041,2436.6,2436.2,4.92288]
[1728060732151,4.91357,2436.8,2436.4,4.10438]
[1728060732522,4.91357,2436.8,2436.5,0.06449036]
[1728060732922,0.64352692,2436.9,2436.6,4.10393]
[1728060733156,0.64352692,2436.9,2436.7,4.90443]
[1728060733455,0.64352692,2436.9,2436.7,0.06409545]
[1728060733456,4.10374,2436.8,2436.7,0.06409545]
[1728060733638,4.10374,2436.8,2436.4,0.8006]
[1728060733952,4.74722692,2436.9,2436.4,9.00929]
[1728060734360,4.74722692,2436.9,2436.5,4.16872036]
[1728060734929,0.64352692,2436.9,2436.6,4.10407]
[1728060735353,0.64352692,2436.9,2436.7,0.06409545]
[1728060735560,0.7558,2436.8,2436.7,0.06409545]
[1728060735771,0.7558,2436.8,2436.5,4.10423]
[1728060735933,0.7558,2436.8,2436.7,0.06403411]
[1728060736129,5.82020169,2436.8,2436.1,7.3]
[1728060736330,5.82020169,2436.8,2436.0,24.57609]
[1728060736331,4.10408,2436.6,2436.2,4.10473]
[1728060736673,5.82020169,2436.8,2436.2,0.06502152]
[1728060736674,4.10442,2436.4,2436.2,0.06502152]
[1728060736960,4.87358,2436.3,2436.2,0.06502152]
[1728060737117,5.77138,2436.3,2435.8,8.2107]
[1728060737471,4.10481,2436.2,2435.8,4.10529]
[1728060737769,1.6668,2436.3,2435.9,0.06541616]
[1728060737919,8.20963,2436.2,2435.9,0.06541616]
[1728060738271,0.987643,2436.1,2435.7,4.10557]
[1728060738410,4.10493,2436.1,2436.0,0.0652186]
[1728060738615,4.10493,2436.1,2435.6,4.1056]
[1728060738972,4.10511,2436.0,2435.6,4.10575]
[1728060739257,4.10493,2436.1,2435.7,4.10552]
[1728060739576,4.10493,2436.1,2435.6,4.10566]
[1728060739880,4.592323,2436.1,2435.7,4.10559]
[1728060740081,8.697353,2436.1,2435.6,4.10566]
[1728060740236,4.592323,2436.1,2435.6,4.10566]
[1728060740433,4.10533,2435.9,2435.4,4.2267404]
[1728060740656,4.10533,2435.9,2435.5,4.10584]
[1728060740657,4.10536,2435.9,2435.5,4.10584]
[1728060740837,5.03179489,2435.9,2435.5,4.10584]
[1728060741269,0.92643489,2435.9,2435.5,4.10581]
[1728060741490,4.10517,2436.0,2435.5,4.10581]
[1728060741782,3.769,2436.3,2435.9,4.10515]
[1728060741934,0.769,2436.3,2436.0,4.10508]
[1728060742139,3.0,2436.4,2436.1,4.10491]
[1728060742337,1.28801759,2436.5,2436.2,4.10467]
[1728060742581,4.74722692,2436.9,2436.4,4.10434]
[1728060742582,5.52032692,2436.9,2436.4,4.10434]
[1728060742879,5.52032692,2436.9,2435.8,3.8069]
[1728060742880,1.41662692,2436.9,2436.5,4.10415]
[1728060743083,1.41662692,2436.9,2436.3,0.7843]
[1728060743317,0.64352692,2436.9,2436.6,4.10397]
[1728060743791,0.64352692,2436.9,2436.3,0.7843]
[1728060743943,0.64352692,2436.9,2436.7,4.10378]
[1728060744374,0.64352692,2436.9,2436.5,4.1041]
[1728060744692,4.74716692,2436.9,2436.5,4.1041]
[1728060744857,4.74716692,2436.9,2436.4,4.1044]
[1728060745241,6.0993862,2436.9,2436.4,4.1044]
[1728060745440,6.0993862,2436.9,2436.3,4.88882]
[1728060745674,4.10383,2436.8,2436.3,8.99334]
[1728060745984,4.10383,2436.8,2436.3,8.99331]
[1728060746141,6.0993862,2436.9,2436.4,4.16872851]
[1728060746340,6.0993862,2436.9,2436.4,0.06442851]
[1728060746640,1.9957462,2436.9,2436.5,8.20838]
[1728060746844,0.64352692,2436.9,2436.5,4.16837103]
[1728060748123,0.64352692,2436.9,2436.8,4.10374]
[1728060748437,0.64352692,2436.9,2436.8,4.16740935]
[1728060748643,0.64352692,2436.9,2436.8,0.06366935]
[1728060748880,0.64352692,2436.9,2436.8,4.88164]
[1728060749071,0.64352692,2436.9,2436.8,4.94530935]
[1728060749542,0.64352692,2436.9,2436.8,4.16740935]
[1728060750900,8.77459592,2437.3,2436.8,0.06366935]
[1728060751100,8.77459592,2437.3,2436.9,4.10355]
[1728060751386,0.64347375,2437.2,2437.0,0.06327454]
[1728060751764,0.64347375,2437.2,2436.8,4.10372]
[1728060752070,0.64347375,2437.2,2436.9,0.06347194]
[1728060752271,0.64347375,2437.2,2436.9,4.16703194]
[1728060752492,0.64347375,2437.2,2436.9,0.06347194]
[1728060753061,1.34386648,2437.2,2436.9,0.06347194]
[1728060753873,1.34386648,2437.2,2436.9,4.16703194]
[1728060754184,1.34386648,2437.2,2437.0,0.06327454]
[1728060755712,3.79203895,2437.1,2437.0,0.06327454]
[1728060757320,8.66206895,2437.1,2437.0,0.06327454]
[1728060757470,8.66206895,2437.1,2436.7,4.1039]
[1728060757471,9.66274249,2437.1,2436.7,4.1039]
[1728060757674,3.79203895,2436.8,2436.7,4.1039]
[1728060758120,3.79203895,2437.1,2437.0,4.10333]
[1728060758273,3.79203895,2437.1,2436.9,4.10354]
[1728060758479,3.79203895,2437.1,2436.9,4.10349]
[1728060758724,3.79203895,2437.1,2437.0,4.1034]
[1728060759016,3.79203895,2437.1,2436.9,4.10349]
[1728060759374,3.79203895,2437.1,2437.0,4.1034]
[1728060760378,3.79203895,2437.1,2436.9,4.10346]
[1728060761113,3.79203895,2437.1,2436.9,8.20693]
[1728060761320,3.79203895,2437.1,2437.0,0.06316842]
[1728060763730,3.79203895,2437.1,2437.0,4.16656842]
[1728060764715,3.79203895,2437.1,2437.0,0.06316842]
[1728060764935,3.79203895,2437.1,2437.0,4.16656842]
[1728060765720,3.79203895,2437.1,2437.0,0.06316842]
[1728060766268,4.64588722,2437.1,2437.0,0.06316842]
[1728060766432,8.68166895,2437.1,2436.5,4.10419]
[1728060766620,3.79203895,2436.7,2436.5,4.10419]
[1728060767033,3.79203895,2436.7,2436.5,4.10418]
[1728060767268,3.79203895,2436.7,2436.5,4.10415]
[1728060767964,3.79203895,2436.7,2436.4,4.10439]
[1728060768264,3.79203895,2436.6,2436.4,4.1043]
[1728060769134,3.79203895,2436.6,2436.5,4.10424]
[1728060772069,8.68635895,2436.6,2436.2,4.10466]
[1728060772274,7.89653895,2436.4,2435.6,0.8283]
[1728060772565,0.7901,2436.6,2435.8,4.10535]
[1728060772566,3.79203895,2436.0,2435.8,4.10535]
[1728060772770,3.79203895,2436.0,2435.9,4.10525]
[1728060772929,0.7901,2436.6,2436.3,4.10458]
[1728060773359,0.7901,2436.6,2436.4,4.10439]
[1728060773528,3.79203895,2436.7,2436.4,4.10439]
[1728060775066,7.89600895,2436.7,2436.3,4.10447]
[1728060775950,3.79203895,2436.7,2436.4,4.1044]
[1728060776739,3.79203895,2436.7,2436.2,4.1047]
[1728060776941,7.89599895,2436.7,2436.3,4.10453]
[1728060777353,3.79203895,2436.7,2436.3,4.10453]
[1728060777868,3.79203895,2436.7,2436.4,4.1044]
[1728060779270,3.79203895,2436.7,2436.4,4.10433]
[1728060779975,3.79203895,2436.7,2436.1,0.8283]
[1728060780176,3.79203895,2436.7,2436.4,4.10439]
[1728060781572,8.67155895,2437.1,2436.7,4.10387]
[1728060782151,4.87952,2437.1,2436.7,4.10387]
[1728060782940,0.7762,2437.1,2436.7,4.10387]
[1728060783166,4.74661375,2437.2,2436.8,4.10374]
[1728060783384,6.09041102,2437.2,2436.8,4.10374]
[1728060783539,0.64347375,2437.2,2436.9,4.10356]
[1728060783735,0.64347375,2437.2,2437.0,4.10337]
[1728060784084,0.64347375,2437.2,2436.9,4.10356]
[1728060784085,0.64347375,2437.2,2436.9,8.20705]
[1728060784290,0.64347375,2437.2,2436.9,8.88754897]
[1728060784942,0.64347375,2437.2,2436.9,4.78398897]
[1728060785537,0.64347375,2437.2,2436.9,8.88744897]
[1728060785943,0.64347375,2437.2,2436.9,4.78395897]
[1728060787398,0.64347375,2437.2,2437.1,4.10323]
[1728060787552,0.64347375,2437.2,2437.1,4.596567]
[1728060790000,0.64347375,2437.2,2437.1,5.88165038]
[1728060790200,0.7628,2438.0,2437.6,4.10227]
[1728060790407,1.40608663,2438.0,2437.6,4.10227]
[1728060791513,1.40608663,2438.0,2437.7,4.10222]
[1728060791724,1.40608663,2438.0,2437.8,4.10203]
[1728060791725,0.64328663,2438.0,2437.8,4.10203]
[1728060791917,0.64328663,2438.0,2437.8,8.20398]
[1728060792221,0.64328663,2438.0,2437.9,4.10189]
[1728060792928,0.64328663,2438.0,2437.8,4.10202]
[1728060793282,0.64328663,2438.0,2437.7,4.88652]
[1728060793483,0.64328663,2438.0,2437.8,4.10198]
[1728060794535,0.64328663,2438.0,2437.7,4.88652]
[1728060794717,0.64328663,2438.0,2437.7,5.375172]
[1728060795032,0.64328663,2438.0,2437.4,4.88726]
[1728060795237,4.10189,2437.9,2437.5,4.10243]
[1728060796109,0.64328663,2438.0,2437.5,4.10242]
[1728060796349,0.64328663,2438.0,2437.9,4.10189]
[1728060796638,0.64328663,2438.0,2437.9,4.86789]
[1728060797026,8.95386,2438.5,2438.0,4.10164]
[1728060797341,4.74424998,2438.4,2438.0,4.10164]
[1728060797525,4.85288,2438.5,2437.9,4.86789]
[1728060797730,8.95389,2438.5,2438.1,4.10155]
[1728060798157,8.95389,2438.5,2438.0,4.10169]
[1728060798439,4.85279,2438.5,2438.1,4.10155]
[1728060798637,4.10107,2438.4,2438.0,4.10167]
[1728060799753,4.10106,2438.4,2438.0,4.10169]
[1728060800354,4.10106,2438.4,2437.9,0.766]
[1728060800515,4.10106,2438.4,2437.9,4.86776]
[1728060800716,4.1013,2438.3,2437.9,4.588536]
[1728060801665,4.10138,2438.2,2437.7,4.92974]
[1728060801862,4.74372939,2438.7,2437.6,4.10224]
[1728060801863,4.10178,2438.0,2437.6,4.10224]
[1728060802217,4.10178,2438.0,2437.4,3.7925]
[1728060802218,4.10207,2437.8,2437.4,4.1027]
[1728060802761,4.10192,2437.9,2437.5,4.10252]
[1728060803657,4.10174,2438.0,2437.6,4.10239]
[1728060805028,4.10174,2438.0,2437.4,4.1027]
[1728060805227,4.10191,2437.9,2437.5,4.10253]
[1728060805543,3.79203895,2438.3,2437.2,0.775]
[1728060805544,4.10128,2438.3,2437.3,0.831]
[1728060805750,4.10128,2438.3,2437.7,0.831]
[1728060805936,4.88802,2438.4,2437.9,4.10174]
[1728060806270,0.7869,2438.4,2438.0,4.1017]
[1728060807359,0.7869,2438.4,2437.9,4.10174]
[1728060807360,1.47555939,2438.7,2438.2,4.10122]
[1728060807662,5.57616939,2438.7,2438.3,4.10109]
[1728060809320,0.64315939,2438.7,2438.5,4.10076]
[1728060810481,0.7865,2438.5,2438.1,4.10144]
[1728060810762,0.7865,2438.5,2438.2,4.10136]
[1728060811539,0.7865,2438.5,2438.1,4.10144]
[1728060811540,4.88741,2438.5,2438.1,4.10144]
[1728060812226,4.8874,2438.5,2438.1,4.10144]
[1728060812419,4.10112,2438.4,2437.9,4.88219]
[1728060812662,4.10112,2438.4,2438.0,4.10164]
[1728060814144,4.10122,2438.3,2437.9,4.10179]
[1728060814643,4.999911,2438.4,2437.9,4.10177]
[1728060814844,4.10123,2438.3,2437.7,4.9251]
[1728060815064,4.10123,2438.3,2437.9,4.10182]
[1728060815225,4.999911,2438.4,2437.9,4.10182]
[1728060815428,9.101071,2438.4,2437.9,8.20356]
[1728060815650,4.999911,2438.4,2438.0,4.10171]
[1728060816538,4.999911,2438.4,2437.9,4.10174]
[1728060816744,4.88798,2438.3,2437.9,4.10174]
[1728060816942,4.88798,2438.3,2437.9,4.10043479]
[1728060817142,6.255973,2438.3,2437.9,4.10043479]
[1728060817341,4.10139,2438.2,2437.4,0.8094]
[1728060817542,4.10173,2438.0,2437.6,4.10229]
[1728060817869,0.8712769,2438.0,2437.6,4.10229]
[1728060818187,4.9729969,2438.0,2437.6,4.10229]
[1728060818332,0.8712769,2438.0,2437.6,4.10229]
[1728060818537,4.92042,2438.2,2437.8,4.10205]
[1728060818743,0.819,2438.2,2438.0,4.1017]
[1728060819475,0.819,2438.2,2437.8,4.10193]
[1728060819972,4.92039,2438.2,2437.8,4.10193]
[1728060820149,4.92039,2438.2,2437.8,8.20389]
[1728060820347,4.92039,2438.2,2437.8,4.10193]
[1728060820993,4.10196,2437.9,2437.4,4.10259]
[1728060821144,0.8209,2438.0,2437.2,3.7546]
[1728060821482,0.8209,2438.0,2437.7,4.1021]
[1728060821894,4.92229,2438.2,2437.8,4.10196]
[1728060822878,4.10157,2438.1,2437.7,4.10209]
[1728060823075,8.20325,2438.1,2437.7,4.10209]
[1728060823241,4.10157,2438.1,2437.7,4.10209]
[1728060823697,4.10157,2438.1,2437.6,4.10238]
[1728060823698,4.10175,2438.0,2437.6,4.10238]
[1728060823993,4.10157,2438.1,2437.7,4.10219]
[1728060824146,0.492247,2438.0,2437.5,0.7546]
[1728060824346,4.10157,2438.1,2437.7,4.10213]
[1728060825186,8.20324,2438.1,2437.7,4.10213]
[1728060825746,4.10174,2438.0,2437.6,4.10237]
[1728060825983,4.10157,2438.1,2437.7,4.1022]
[1728060826251,8.20324,2438.1,2437.7,4.1022]
[1728060826413,4.10179,2438.0,2437.6,4.10235]
[1728060827040,4.10179,2438.0,2437.5,4.85715]
[1728060827339,4.10193,2437.9,2437.5,4.85715]
[1728060827500,4.10179,2438.0,2437.5,4.85715]
[1728060827702,4.10179,2438.0,2437.6,4.10232]
[1728060829426,4.10179,2438.0,2437.5,4.85705]
[1728060829594,4.10179,2438.0,2437.6,4.10229]
[1728060829800,4.10164,2438.1,2437.7,4.1021]
[1728060830341,4.10108,2438.4,2438.0,4.10158]
[1728060830722,4.10121,2438.3,2437.9,4.88548]
[1728060831447,8.2022,2438.4,2438.0,4.10167]
[1728060831749,4.10133,2438.3,2437.9,4.88548]
[1728060832408,4.10105,2438.4,2437.9,8.98728]
[1728060832603,4.10105,2438.4,2437.9,4.88548]
[1728060832950,4.10094,2438.5,2438.1,4.10153]
[1728060833100,4.10094,2438.5,2438.1,8.2029]
[1728060833445,4.74373939,2438.7,2438.3,4.10121]
[1728060833601,0.64315939,2438.7,2438.3,8.20235]
[1728060833807,0.64315939,2438.7,2438.4,4.10101]
[1728060834503,0.64315939,2438.7,2438.5,4.10076]
[1728060834705,0.64315939,2438.7,2438.6,4.10071]
[1728060834942,0.64315939,2438.7,2438.6,4.18105317]
[1728060835301,0.64315939,2438.7,2438.6,4.89891]
[1728060835507,0.64315939,2438.7,2438.6,5.387458]
[1728060838648,0.64315939,2438.7,2438.6,0.488548]
[1728060838833,0.64315939,2438.7,2438.5,8.20166]
[1728060839148,0.64315939,2438.7,2438.3,4.85411]
[1728060839446,4.10072,2438.6,2438.2,7.10135]
[1728060839803,4.10072,2438.6,2438.1,4.87642]
[1728060840009,4.10072,2438.6,2437.9,4.10174]
[1728060840010,0.8279,2438.5,2437.9,4.10174]
[1728060840320,4.10147,2438.2,2437.8,7.3]
[1728060841233,4.10147,2438.2,2437.3,4.10289]
[1728060841234,0.8325,2438.1,2437.4,0.807]
[1728060841547,4.10147,2438.2,2437.6,4.10235]
[1728060841718,5.004981,2438.2,2437.6,4.10235]
[1728060841921,5.004981,2438.2,2437.7,4.10212]
[1728060842248,0.8325,2438.3,2437.9,4.10181]
[1728060842933,4.93374,2438.3,2437.9,8.20361]
[1728060843114,0.8325,2438.3,2437.9,4.1018]
[1728060843532,4.93372,2438.3,2437.9,4.1018]
[1728060844537,4.93372,2438.3,2437.8,4.10202]
[1728060844970,1.735969,2438.3,2437.4,3.807]
[1728060845169,1.735969,2438.3,2437.6,4.10239]
[1728060845170,4.10167,2438.1,2437.6,4.10239]
[1728060845589,4.10172,2438.0,2437.5,4.10254]
[1728060845893,4.10172,2438.0,2437.4,4.90961]
[1728060845894,4.89065,2437.9,2437.4,4.10269]
[1728060846446,0.7887,2437.9,2437.3,11.40287]
[1728060846671,4.8906,2437.9,2437.5,4.10255]
[1728060847346,0.7887,2437.9,2437.5,8.20503]
[1728060847542,0.7887,2437.9,2437.6,4.10232]
[1728060847946,7.89338895,2438.3,2437.7,4.10212]
[1728060847947,4.92029,2438.2,2437.7,4.10212]
[1728060848898,4.10163,2438.1,2437.7,4.10212]
[1728060849190,0.7568,2437.7,2437.3,12.18886]
[1728060849485,0.7568,2437.7,2437.3,4.88886]
[1728060849686,0.7568,2437.7,2437.3,8.99166]
[1728060850243,0.7568,2437.7,2437.4,4.10272]
[1728060850762,0.7568,2437.7,2437.5,4.10253]
[1728060851564,0.7568,2437.7,2437.4,4.10272]
[1728060852889,0.7568,2437.7,2437.3,0.7861]
[1728060853049,0.7568,2437.7,2437.3,4.88892]
[1728060853247,4.85904,2437.7,2437.3,4.88892]
[1728060854089,0.7568,2437.7,2437.3,4.88892]
[1728060854647,0.7568,2437.7,2437.4,4.10265]
[1728060855058,1.652905,2437.7,2437.0,0.7609]
[1728060855292,1.652905,2437.7,2436.9,4.10355]
[1728060855293,4.10284,2437.4,2436.9,4.10355]
[1728060855465,4.10296,2437.3,2436.9,4.10355]
[1728060855662,4.10296,2437.3,2436.8,12.16455]
[1728060855663,4.10313,2437.2,2436.8,16.26821]
[1728060855869,0.8022,2437.3,2436.9,4.10356]
[1728060856111,0.8022,2437.3,2437.0,4.10339]
[1728060856551,0.8022,2437.3,2437.0,4.1034]
[1728060858189,1.44555381,2437.3,2437.1,4.10315]
[1728060859251,1.44555381,2437.3,2437.0,4.10331]
[1728060859692,1.44555381,2437.3,2437.1,4.1032]
[1728060860663,1.44555381,2437.3,2436.8,4.86452]
[1728060860867,1.44555381,2437.3,2436.8,4.10362]
[1728060861095,0.55483938,2437.2,2436.9,4.10345]
[1728060861405,1.44555381,2437.3,2437.0,4.10336]
[1728060863008,1.44555381,2437.3,2437.0,4.10333]
[1728060863883,1.44555381,2437.3,2437.1,4.1032]
[1728060864063,0.64335381,2437.3,2437.2,4.10306]
[1728060864419,4.10184,2438.0,2437.3,4.10287]
[1728060864420,4.10223,2437.7,2437.3,4.10287]
[1728060864594,4.10223,2437.7,2437.3,4.10283]
[1728060864762,5.56084647,2437.8,2437.4,4.10264]
[1728060865304,5.56084647,2437.8,2437.4,8.20528]
[1728060865668,5.56084647,2437.8,2437.4,4.10264]
[1728060866177,5.56084647,2437.8,2437.4,8.20528]
[1728060866616,9.66300647,2437.8,2437.4,4.10264]
[1728060866784,0.55608465,2437.7,2437.4,4.10264]
[1728060867305,5.56084647,2437.8,2437.4,4.10264]
[1728060867903,5.56084647,2437.8,2437.5,4.10254]
[1728060867904,1.45871647,2437.8,2437.5,4.10254]
[1728060868467,0.64331647,2437.8,2437.7,4.10222]
[1728060868704,0.64331647,2437.8,2437.7,4.512442]
[1728060869105,0.64331647,2437.8,2437.7,5.267542]
[1728060870085,0.7537,2438.7,2437.9,0.7822]
[1728060870296,0.7537,2438.7,2438.4,4.10092]
[1728060870498,5.339721,2438.7,2438.2,4.10128]
[1728060870814,4.74380538,2438.6,2438.2,4.10128]
[1728060871020,4.74380538,2438.6,2438.2,8.20258]
[1728060871172,0.64307538,2438.6,2438.2,4.10128]
[1728060871372,0.64307538,2438.6,2438.2,4.10126]
[1728060871613,0.64307538,2438.6,2438.3,4.10121]
[1728060872616,0.64307538,2438.6,2438.4,4.10103]
[1728060872915,4.74387538,2438.6,2438.1,4.10146]
[1728060873411,0.64307538,2438.6,2438.2,4.10129]
[1728060873710,4.74381538,2438.6,2438.2,4.10129]
[1728060873914,0.64307538,2438.6,2438.2,4.10129]
[1728060874120,0.64307538,2438.6,2438.3,4.10118]
[1728060875028,4.88808,2438.5,2438.0,4.10157]
[1728060875229,4.88808,2438.5,2437.7,3.8038]
[1728060875525,8.98911,2438.5,2438.0,4.10158]
[1728060875731,6.28547719,2438.5,2438.0,8.20321]
[1728060875902,6.28547719,2438.5,2438.1,4.10154]
[1728060876742,6.28547719,2438.5,2437.8,4.10196]
[1728060876743,4.10112,2438.4,2437.8,4.10196]
[1728060876889,0.7852,2438.2,2437.9,4.1018]
[1728060877086,0.7852,2438.2,2437.9,8.20359]
[1728060877399,0.7852,2438.2,2437.9,4.10179]
[1728060878018,0.7852,2438.2,2437.9,8.20357]
[1728060878226,0.7852,2438.2,2438.0,4.10163]
[1728060878390,0.7852,2438.2,2437.9,4.10178]
[1728060878591,0.7852,2438.2,2437.9,8.2036]
[1728060879005,0.7852,2438.2,2438.0,4.10171]
[1728060879499,0.7852,2438.2,2437.9,4.10178]
[1728060879830,0.7852,2438.2,2437.9,8.2036]
[1728060880692,0.7852,2438.2,2437.9,4.10178]
[1728060881617,0.7852,2438.2,2438.0,4.10165]
[1728060881828,0.7852,2438.2,2437.9,4.10178]
[1728060882023,0.7852,2438.2,2437.9,8.20356]
[1728060882336,0.7852,2438.2,2437.9,8.20355]
[1728060882925,0.7852,2438.2,2437.9,4.10177]
[1728060883255,0.7852,2438.2,2438.0,4.10167]
[1728060883471,4.92462,2438.4,2438.0,4.10167]
[1728060884456,4.10126,2438.3,2437.9,4.10186]
[1728060884858,4.92462,2438.4,2437.9,4.10186]
[1728060885270,4.10122,2438.3,2437.7,4.10213]
[1728060885423,4.10163,2438.1,2437.7,4.10213]
[1728060886024,0.7584,2438.2,2438.0,4.10164]
[1728060886275,0.8005,2438.4,2438.0,4.10158]
[1728060886439,0.8005,2438.4,2438.1,4.10154]
[1728060887032,0.8005,2438.4,2438.0,8.2032]
[1728060887252,4.90156,2438.4,2438.0,4.10158]
[1728060887767,4.10122,2438.3,2437.9,4.10187]
[1728060888869,4.10122,2438.3,2437.9,4.10181]
[1728060890268,4.10122,2438.3,2437.9,8.20362]
[1728060890471,4.10122,2438.3,2437.9,4.10181]
[1728060891531,4.10122,2438.3,2437.9,8.20362]
[1728060892072,0.8005,2438.4,2437.9,4.10181]
[1728060892073,4.90157,2438.4,2437.9,4.10181]
[1728060892229,4.90157,2438.4,2438.0,4.10172]
[1728060892563,6.24532743,2438.4,2438.0,4.10172]
[1728060892739,4.10124,2438.3,2437.9,4.10188]
[1728060893262,4.10124,2438.3,2437.9,8.20368]
[1728060894371,4.10124,2438.3,2437.9,4.1018]
[1728060895062,4.10124,2438.3,2437.9,8.15357]
[1728060895226,4.10124,2438.3,2437.9,4.0518]
[1728060895663,5.13588174,2438.3,2437.9,4.0518]
[1728060895865,4.1016,2438.1,2437.7,4.10206]
[1728060896024,0.7944,2438.0,2437.7,4.10206]
[1728060897326,0.7944,2438.0,2437.7,8.2042]
[1728060897529,0.7944,2438.0,2437.7,4.10206]
[1728060897763,5.38581,2438.0,2437.6,4.10233]
[1728060897973,4.10193,2437.9,2437.5,4.10246]
[1728060898738,4.10193,2437.9,2437.3,0.8222]
[1728060899070,4.10251,2437.6,2436.9,1.21365064]
[1728060899241,0.7838,2437.4,2437.1,4.10317]
[1728060899567,0.7838,2437.4,2437.2,4.10305]
[1728060900139,0.7838,2437.4,2437.3,4.1029]
[1728060900560,3.79203895,2437.8,2437.3,4.1029]
[1728060900561,4.10206,2437.8,2437.3,4.1029]
[1728060900735,0.8175,2437.7,2437.4,4.10261]
[1728060901301,0.8175,2437.7,2437.3,4.90446]
[1728060901451,0.8175,2437.7,2437.4,4.1027]
[1728060901647,1.309463,2437.7,2437.3,4.10276]
[1728060901968,5.411763,2437.7,2437.3,4.10276]
[1728060903371,4.10266,2437.5,2437.1,4.10308]
[1728060904269,0.771,2437.6,2437.1,4.10308]
[1728060904475,4.87341,2437.6,2437.2,4.10297]
[1728060905190,4.10257,2437.5,2437.1,4.10322]
[1728060905347,5.8201713,2437.6,2437.1,4.10322]
[1728060905673,4.10264,2437.5,2437.1,4.10322]
[1728060905879,5.8201713,2437.6,2437.2,4.10306]
[1728060906186,4.87341,2437.6,2437.2,4.10306]
[1728060906981,4.87341,2437.6,2436.9,4.10342]
[1728060907155,4.10257,2437.5,2437.1,4.10321]
[1728060908492,4.10257,2437.5,2437.1,4.10312]
[1728060910713,8.20527,2437.5,2437.1,4.10312]
[1728060910848,8.20527,2437.5,2437.0,4.10339]